fUSD/lending_fUSD_20240630
["ID","MTS","AMOUNT","RATE_DAILY","PERIOD"]
[330701931,1719715887945,-768.2,0.00015452,3]
[330701932,1719715887954,-614.71,0.00015452,3]
[330701933,1719715887963,-297.27546332,0.00015452,3]
[330701934,1719715887972,-731.6,0.00015452,3]
[330701935,1719715887981,-500.0,0.00015452,3]
[330701936,1719715887990,-560.3,0.00015452,3]
[330701937,1719715887999,-500.0,0.00015452,3]
[330701938,1719715888008,-598.49631429,0.00015452,3]
[330701939,1719715888017,-670.04,0.00015452,3]
[330701940,1719715888026,-500.0,0.00015452,3]
[330701941,1719715888035,-500.0,0.00015452,3]
[330701942,1719715888047,-670.53,0.00015452,3]
[330701943,1719715888060,-1084.67,0.00015452,3]
[330701944,1719715888070,-688.83,0.00015452,3]
[330701945,1719715888079,-1047.34,0.00015452,3]
[330701946,1719715888091,-874.39,0.00015452,3]
[330701947,1719715888100,-500.0,0.00015452,3]
[330701948,1719715888110,-642.11737741,0.00015452,3]
[330701949,1719715888119,-989.37,0.00015452,3]
[330701950,1719715888131,-500.0,0.00015452,3]
[330701951,1719715888140,-639.49,0.00015452,3]
[330701952,1719715888150,-749.55,0.00015452,3]
[330701953,1719715888159,-458.89,0.00015452,3]
[330701954,1719715888171,-1660.26,0.00015452,3]
[330701955,1719715888181,-500.0,0.00015452,3]
[330701956,1719715888191,-500.0,0.00015452,3]
[330701957,1719715888200,-500.0,0.00015452,3]
[330701958,1719715888210,-500.0,0.00015452,3]
[330701959,1719715888219,-609.86,0.00015452,3]
[330701960,1719715888228,-575.37,0.00015452,3]
[330701961,1719715888237,-525.93,0.00015452,3]
[330701962,1719715888247,-1032.93,0.00015452,3]
[330701963,1719715888256,-503.73,0.00015452,3]
[330701964,1719715888265,-907.61,0.00015452,3]
[330701965,1719715888275,-500.0,0.00015452,3]
[330701966,1719715888284,-919.71,0.00015452,3]
[330701967,1719715888294,-609.42,0.00015452,3]
[330701968,1719715888304,-561.12,0.00015452,3]
[330701969,1719715888313,-155.73,0.00015452,3]
[330701970,1719715888322,-524.56,0.00015452,3]
[330701971,1719715888331,-648.03,0.00015452,3]
[330701972,1719715888341,-665.61,0.00015452,3]
[330701973,1719715888354,-500.0,0.00015452,3]
[330701974,1719715888363,-595.24,0.00015452,3]
[330701975,1719715888372,-154.52265436,0.00015452,3]
[330701976,1719715888381,-452.03832137,0.00015452,3]
[330701977,1719715888390,-500.0,0.00015452,3]
[330701978,1719715888399,-500.0,0.00015452,3]
[330701979,1719715888408,-535.24,0.00015452,3]
[330701980,1719715888417,-1707.57,0.00015452,3]
[330701981,1719715888426,-500.0,0.00015452,3]
[330701982,1719715888436,-500.0,0.00015452,3]
[330701983,1719715888445,-1194.29,0.00015452,3]
[330701984,1719715888454,-500.0,0.00015452,3]
[330701985,1719715888463,-862.38,0.00015452,3]
[330701986,1719715888473,-775.65,0.00015452,3]
[330701987,1719715888482,-500.0,0.00015452,3]
[330701988,1719715888491,-500.0,0.00015452,3]
[330701989,1719715888500,-2017.06,0.00015452,3]
[330701990,1719715888509,-432.06652898,0.00015452,3]
[330701991,1719715888518,-1155.28,0.00015452,3]
[330701992,1719715888527,-3847.3,0.00015452,3]
[330701993,1719715888537,-501.09,0.00015452,3]
[330701994,1719715888546,-670.12,0.00015452,3]
[330701995,1719715888555,-1981.14,0.00015452,3]
[330701996,1719715888566,-561.32,0.00015452,3]
[330701997,1719715888576,-1322.8,0.00015452,3]
[330701998,1719715888585,-500.0,0.00015452,3]
[330701999,1719715888596,-757.5,0.00015452,3]
[330702000,1719715888604,-500.0,0.00015452,3]
[330702001,1719715888613,-579.95,0.00015452,3]
[330702002,1719715888624,-1006.07,0.00015452,3]
[330702003,1719715888635,-500.0,0.00015452,3]
[330702004,1719715888645,-500.0,0.00015452,3]
[330702005,1719715888656,-500.0,0.00015452,3]
[330702006,1719715888666,-1341.8,0.00015452,3]
[330702007,1719715888677,-500.0,0.00015452,3]
[330702008,1719715888686,-633.84,0.00015452,3]
[330702009,1719715888695,-500.0,0.00015452,3]
[330702010,1719715888706,-1187.56,0.00015452,3]
[330702011,1719715888715,-590.67973403,0.00015452,3]
[330702012,1719715888724,-500.0,0.00015452,3]
[330702013,1719715888735,-579.77,0.00015452,3]
[330702014,1719715888745,-603.84,0.00015452,3]
[330702015,1719715888756,-552.84,0.00015452,3]
[330702016,1719715888767,-500.0,0.00015452,3]
[330702017,1719715888777,-500.0,0.00015452,3]
[330702018,1719715888788,-500.0,0.00015452,3]
[330702019,1719715888798,-965.88,0.00015452,3]
[330702020,1719715888808,-698.45,0.00015452,3]
[330702021,1719715888818,-642.26,0.00015452,3]
[330702022,1719715888828,-516.27,0.00015452,3]
[330702023,1719715888838,-500.0,0.00015452,3]
[330702024,1719715888847,-675.86,0.00015452,3]
[330702025,1719715888857,-763.84,0.00015452,3]
[330702026,1719715888867,-892.41,0.00015452,3]
[330702027,1719715888878,-708.05,0.00015452,3]
[330702028,1719715888888,-713.73,0.00015452,3]
[330702029,1719715888897,-523.74,0.00015452,3]
[330702030,1719715888907,-500.0,0.00015452,3]
[330702031,1719715888916,-624.5,0.00015452,3]
[330702032,1719715888925,-500.0,0.00015452,3]
[330702033,1719715888935,-3175.52,0.00015452,3]
[330702034,1719715888947,-500.0,0.00015452,3]
[330702035,1719715888956,-500.0,0.00015452,3]
[330702036,1719715888965,-987.08,0.00015452,3]
[330702037,1719715888974,-500.0,0.00015452,3]
[330702038,1719715888984,-1368.96,0.00015452,3]
[330702039,1719715888994,-500.0,0.00015452,3]
[330702040,1719715889004,-1311.38,0.00015452,3]
[330702041,1719715889013,-907.53,0.00015452,3]
[330702042,1719715889023,-507.05,0.00015452,3]
[330702043,1719715889032,-1080.55,0.00015452,3]
[330702044,1719715889042,-1968.8,0.00015452,3]
[330702045,1719715889055,-1471.1,0.00015452,3]
[330702046,1719715889065,-1161.94,0.00015452,3]
[330702047,1719715889075,-500.0,0.00015452,3]
[330702048,1719715889087,-500.0,0.00015452,3]
[330702049,1719715889098,-654.89,0.00015452,3]
[330702050,1719715889108,-864.95,0.00015452,3]
[330702051,1719715889118,-273.51222739,0.00015514,2]
[330702052,1719715889129,-664.54,0.0001556,3]
[330702053,1719715889140,-699.83,0.0001556,3]
[330702054,1719715889150,-1202.0,0.0001556,3]
[330702055,1719715889160,-522.36,0.0001556,3]
[330702056,1719715889170,-587.33,0.00015561,3]
[330702057,1719715889179,-730.63,0.00015561,3]
[330702058,1719715889189,-937.17,0.00015561,3]
[330702059,1719715889198,-2172.53,0.00015561,3]
[330702060,1719715889208,-8098.74,0.00015561,3]
[330702061,1719715889217,-1705.68,0.00015561,3]
[330702062,1719715889228,-621.2,0.00015561,3]
[330702063,1719715889237,-786.94,0.00015561,3]
[330702064,1719715889247,-575.12,0.00015561,3]
[330702065,1719715889257,-633.74,0.00015561,3]
[330702066,1719715889266,-500.0,0.00015561,3]
[330702067,1719715889276,-500.0,0.00015561,3]
[330702068,1719715889286,-1034.52,0.00015561,3]
[330702069,1719715889296,-768.2,0.00015561,3]
[330702070,1719715889306,-614.71,0.00015561,3]
[330702071,1719715889315,-731.6,0.00015561,3]
[330702072,1719715889324,-500.0,0.00015561,3]
[330702073,1719715889335,-560.3,0.00015561,3]
[330702074,1719715889348,-500.0,0.00015561,3]
[330702075,1719715889358,-670.04,0.00015561,3]
[330702076,1719715889367,-500.0,0.00015561,3]
[330702077,1719715889376,-500.0,0.00015561,3]
[330702078,1719715889385,-670.53,0.00015561,3]
[330702079,1719715889394,-1084.67,0.00015561,3]
[330702080,1719715889404,-688.83,0.00015561,3]
[330702081,1719715889414,-1047.34,0.00015561,3]
[330702082,1719715889424,-874.39,0.00015561,3]
[330702083,1719715889434,-500.0,0.00015561,3]
[330702084,1719715889444,-989.37,0.00015561,3]
[330702085,1719715889454,-500.0,0.00015561,3]
[330702086,1719715889465,-639.49,0.00015561,3]
[330702087,1719715889590,-749.55,0.00015561,3]
[330702088,1719715889602,-1660.26,0.00015561,3]
[330702089,1719715889613,-500.0,0.00015561,3]
[330702090,1719715889623,-383.12113125,0.00015561,3]
[330702091,1719715889635,-500.0,0.00015561,3]
[330702092,1719715889645,-500.0,0.00015561,3]
[330702093,1719715889655,-609.86,0.00015561,3]
[330702094,1719715889666,-575.37,0.00015561,3]
[330702095,1719715889676,-525.93,0.00015561,3]
[330702096,1719715889686,-1032.93,0.00015561,3]
[330702097,1719715889696,-503.73,0.00015561,3]
[330702098,1719715889706,-907.61,0.00015561,3]
[330702099,1719715889716,-500.0,0.00015561,3]
[330702100,1719715889725,-919.71,0.00015561,3]
[330702101,1719715889736,-609.42,0.00015561,3]
[330702102,1719715889745,-561.12,0.00015561,3]
[330702103,1719715889754,-155.73,0.00015561,3]
[330702104,1719715889764,-524.56,0.00015561,3]
[330702105,1719715889774,-648.03,0.00015561,3]
[330702106,1719715889784,-665.61,0.00015561,3]
[330702107,1719715889794,-500.0,0.00015561,3]
[330702108,1719715889804,-595.24,0.00015561,3]
[330702109,1719715889814,-500.0,0.00015561,3]
[330702110,1719715889824,-500.0,0.00015561,3]
[330702111,1719715889833,-535.24,0.00015561,3]
[330702112,1719715889846,-1707.57,0.00015561,3]
[330702113,1719715889856,-500.0,0.00015561,3]
[330702114,1719715889865,-352.17411445,0.00015561,3]
[330702115,1719715889875,-1194.29,0.00015561,3]
[330702116,1719715889885,-554.85890716,0.00015561,3]
[330702117,1719715889895,-862.38,0.00015561,3]
[330702118,1719715889905,-775.65,0.00015561,3]
[330702119,1719715889914,-500.0,0.00015561,3]
[330702120,1719715889924,-500.0,0.00015561,3]
[330702121,1719715889934,-2017.06,0.00015561,3]
[330702122,1719715889944,-1155.28,0.00015561,3]
[330702123,1719715889954,-3847.3,0.00015561,3]
[330702124,1719715889963,-501.09,0.00015561,3]
[330702125,1719715889973,-670.12,0.00015561,3]
[330702126,1719715889983,-1981.14,0.00015561,3]
[330702127,1719715889993,-561.32,0.00015561,3]
[330702128,1719715890003,-1322.8,0.00015561,3]
[330702129,1719715890012,-500.0,0.00015561,3]
[330702130,1719715890022,-757.5,0.00015561,3]
[330702131,1719715890031,-500.0,0.00015561,3]
[330702132,1719715890040,-579.95,0.00015561,3]
[330702133,1719715890051,-1006.07,0.00015561,3]
[330702134,1719715890062,-500.0,0.00015561,3]
[330702135,1719715890071,-500.0,0.00015561,3]
[330702136,1719715890080,-500.0,0.00015561,3]
[330702137,1719715890091,-1341.8,0.00015561,3]
[330702138,1719715890100,-500.0,0.00015561,3]
[330702139,1719715890110,-633.84,0.00015561,3]
[330702140,1719715890120,-500.0,0.00015561,3]
[330702141,1719715890134,-1187.56,0.00015561,3]
[330702142,1719715890144,-500.0,0.00015561,3]
[330702143,1719715890155,-579.77,0.00015561,3]
[330702144,1719715890164,-603.84,0.00015561,3]
[330702145,1719715890174,-552.84,0.00015561,3]
[330702146,1719715890184,-500.0,0.00015561,3]
[330702147,1719715890194,-500.0,0.00015561,3]
[330702148,1719715890204,-500.0,0.00015561,3]
[330702149,1719715890214,-965.88,0.00015561,3]
[330702150,1719715890224,-642.26,0.00015561,3]
[330702151,1719715890234,-698.45,0.00015561,3]
[330702152,1719715890244,-516.27,0.00015561,3]
[330702153,1719715890253,-500.0,0.00015561,3]
[330702154,1719715890263,-675.86,0.00015561,3]
[330702155,1719715890273,-763.84,0.00015561,3]
[330702156,1719715890282,-892.41,0.00015561,3]
[330702157,1719715890292,-708.05,0.00015561,3]
[330702158,1719715890302,-713.73,0.00015561,3]
[330702159,1719715890313,-523.74,0.00015561,3]
[330702160,1719715890324,-500.0,0.00015561,3]
[330702161,1719715890334,-624.5,0.00015561,3]
[330702162,1719715890344,-500.0,0.00015561,3]
[330702163,1719715890354,-3175.52,0.00015561,3]
[330702164,1719715890364,-500.0,0.00015561,3]
[330702165,1719715890375,-412.05761562,0.00015561,3]
[330702166,1719715890384,-987.08,0.00015561,3]
[330702167,1719715890395,-509.20073762,0.00015561,3]
[330702168,1719715890404,-1368.96,0.00015561,3]
[330702169,1719715890415,-500.0,0.00015561,3]
[330702170,1719715890425,-1311.38,0.00015561,3]
[330702171,1719715890435,-907.53,0.00015561,3]
[330702172,1719715890445,-507.05,0.00015561,3]
[330702173,1719715890455,-1080.55,0.00015561,3]
[330702174,1719715890464,-1968.8,0.00015561,3]
[330702175,1719715890475,-1471.1,0.00015561,3]
[330702176,1719715890486,-1161.94,0.00015561,3]
[330702177,1719715890496,-500.0,0.00015561,3]
[330702178,1719715890506,-402.39473678,0.00015561,3]
[330702179,1719715890516,-654.89,0.00015561,3]
[330702180,1719715890526,-864.95,0.00015561,3]
[330702181,1719715890536,-397.75241797,0.0001563,2]
[330702182,1719715890545,-350.0,0.0001563,2]
[330702183,1719715890555,-1000.0,0.00015644,2]
[330702184,1719715890565,-25072.10870496,0.00015646,2]
[330702185,1719715890575,-664.54,0.0001567,3]
[330702186,1719715890585,-699.83,0.0001567,3]
[330702187,1719715890596,-1202.0,0.0001567,3]
[330702188,1719715890606,-522.36,0.0001567,3]
[330702189,1719715890617,-587.33,0.00015671,3]
[330702190,1719715890628,-730.63,0.00015671,3]
[330702191,1719715890638,-937.17,0.00015671,3]
[330702192,1719715890649,-2172.53,0.00015671,3]
[330702193,1719715890659,-8098.74,0.00015671,3]
[330702194,1719715890671,-1705.68,0.00015671,3]
[330702195,1719715890681,-621.2,0.00015671,3]
[330702196,1719715890691,-786.94,0.00015671,3]
[330702197,1719715890701,-575.12,0.00015671,3]
[330702198,1719715890711,-633.74,0.00015671,3]
[330702199,1719715890720,-500.0,0.00015671,3]
[330702200,1719715890730,-500.0,0.00015671,3]
[330702201,1719715890739,-1034.52,0.00015671,3]
[330702202,1719715890748,-768.2,0.00015671,3]
[330702203,1719715890758,-614.71,0.00015671,3]
[330702204,1719715890767,-731.6,0.00015671,3]
[330702205,1719715890776,-500.0,0.00015671,3]
[330702206,1719715890785,-560.3,0.00015671,3]
[330702207,1719715890795,-500.0,0.00015671,3]
[330702208,1719715890807,-670.04,0.00015671,3]
[330702209,1719715890816,-500.0,0.00015671,3]
[330702210,1719715890825,-500.0,0.00015671,3]
[330702211,1719715890834,-670.53,0.00015671,3]
[330702212,1719715890845,-1084.67,0.00015671,3]
[330702213,1719715890854,-688.83,0.00015671,3]
[330702214,1719715890863,-1047.34,0.00015671,3]
[330702215,1719715890873,-874.39,0.00015671,3]
[330702216,1719715890887,-500.0,0.00015671,3]
[330702217,1719715890897,-989.37,0.00015671,3]
[330702218,1719715890906,-500.0,0.00015671,3]
[330702219,1719715890916,-639.49,0.00015671,3]
[330702220,1719715890925,-749.55,0.00015671,3]
[330702221,1719715890935,-1660.26,0.00015671,3]
[330702222,1719715890944,-151.31246117,0.00015671,3]
[330702223,1719715890954,-500.0,0.00015671,3]
[330702224,1719715890963,-500.0,0.00015671,3]
[330702225,1719715890973,-609.86,0.00015671,3]
[330702226,1719715890982,-575.37,0.00015671,3]
[330702227,1719715890991,-525.93,0.00015671,3]
[330702228,1719715891001,-1032.93,0.00015671,3]
[330702229,1719715891010,-503.73,0.00015671,3]
[330702230,1719715891020,-907.61,0.00015671,3]
[330702231,1719715891029,-500.0,0.00015671,3]
[330702232,1719715891038,-919.71,0.00015671,3]
[330702233,1719715891049,-609.42,0.00015671,3]
[330702234,1719715891063,-561.12,0.00015671,3]
[330702235,1719715891072,-155.73,0.00015671,3]
[330702236,1719715891081,-524.56,0.00015671,3]
[330702237,1719715891091,-648.03,0.00015671,3]
[330702238,1719715891107,-665.61,0.00015671,3]
[330702239,1719715891116,-500.0,0.00015671,3]
[330702240,1719715891125,-595.24,0.00015671,3]
[330702241,1719715891138,-500.0,0.00015671,3]
[330702242,1719715891148,-500.0,0.00015671,3]
[330702243,1719715891157,-535.24,0.00015671,3]
[330702244,1719715891166,-1707.57,0.00015671,3]
[330702245,1719715891175,-500.0,0.00015671,3]
[330702246,1719715891185,-1194.29,0.00015671,3]
[330702247,1719715891194,-862.38,0.00015671,3]
[330702248,1719715891203,-775.65,0.00015671,3]
[330702249,1719715891212,-500.0,0.00015671,3]
[330702250,1719715891222,-500.0,0.00015671,3]
[330702251,1719715891232,-2017.06,0.00015671,3]
[330702252,1719715891241,-1155.28,0.00015671,3]
[330702253,1719715891250,-3847.3,0.00015671,3]
[330702254,1719715891259,-501.09,0.00015671,3]
[330702255,1719715891268,-670.12,0.00015671,3]
[330702256,1719715891279,-1981.14,0.00015671,3]
[330702257,1719715891288,-561.32,0.00015671,3]
[330702258,1719715891297,-1322.8,0.00015671,3]
[330702259,1719715891307,-500.0,0.00015671,3]
[330702260,1719715891316,-757.5,0.00015671,3]
[330702261,1719715891326,-500.0,0.00015671,3]
[330702262,1719715891336,-579.95,0.00015671,3]
[330702263,1719715891348,-1006.07,0.00015671,3]
[330702264,1719715891357,-500.0,0.00015671,3]
[330702265,1719715891367,-500.0,0.00015671,3]
[330702266,1719715891376,-500.0,0.00015671,3]
[330702267,1719715891385,-1341.8,0.00015671,3]
[330702268,1719715891395,-500.0,0.00015671,3]
[330702269,1719715891404,-633.84,0.00015671,3]
[330702270,1719715891413,-500.0,0.00015671,3]
[330702271,1719715891423,-1187.56,0.00015671,3]
[330702272,1719715891432,-500.0,0.00015671,3]
[330702273,1719715891441,-579.77,0.00015671,3]
[330702274,1719715891451,-603.84,0.00015671,3]
[330702275,1719715891460,-552.84,0.00015671,3]
[330702276,1719715891469,-177.88471282,0.00015671,3]
[330702277,1719715891478,-500.0,0.00015671,3]
[330702278,1719715891488,-500.0,0.00015671,3]
[330702279,1719715891497,-965.88,0.00015671,3]
[330702280,1719715891507,-642.26,0.00015671,3]
[330702281,1719715891516,-698.45,0.00015671,3]
[330702282,1719715891526,-516.27,0.00015671,3]
[330702283,1719715891535,-500.0,0.00015671,3]
[330702284,1719715891544,-675.86,0.00015671,3]
[330702285,1719715891554,-763.84,0.00015671,3]
[330702286,1719715891563,-892.41,0.00015671,3]
[330702287,1719715891573,-708.05,0.00015671,3]
[330702288,1719715891582,-713.73,0.00015671,3]
[330702289,1719715891593,-523.74,0.00015671,3]
[330702290,1719715891602,-500.0,0.00015671,3]
[330702291,1719715891611,-624.5,0.00015671,3]
[330702292,1719715891621,-500.0,0.00015671,3]
[330702293,1719715891630,-3175.52,0.00015671,3]
[330702294,1719715891640,-500.0,0.00015671,3]
[330702295,1719715891649,-987.08,0.00015671,3]
[330702296,1719715891659,-1368.96,0.00015671,3]
[330702297,1719715891669,-500.0,0.00015671,3]
[330702298,1719715891678,-1311.38,0.00015671,3]
[330702299,1719715891687,-907.53,0.00015671,3]
[330702300,1719715891697,-507.05,0.00015671,3]
[330702301,1719715891706,-1080.55,0.00015671,3]
[330702302,1719715891716,-1968.8,0.00015671,3]
[330702303,1719715891725,-1471.1,0.00015671,3]
[330702304,1719715891735,-1161.94,0.00015671,3]
[330702305,1719715892012,-500.0,0.00015671,3]
[330702306,1719715892023,-654.89,0.00015671,3]
[330702307,1719715892033,-5604.08620179,0.00015685,2]
[330702308,1719715892042,-401.52726361,0.00015735,2]
[330702309,1719715892057,-204.0,0.0001574,2]
[330702310,1719715892068,-327.0,0.0001574,2]
[330702311,1719715892078,-215.42,0.00015747,2]
[330702312,1719715892088,-1661.54,0.00015753,2]
[330702313,1719715892100,-664.54,0.00015779,3]
[330702314,1719715892110,-699.83,0.00015779,3]
[330702315,1719715892120,-1202.0,0.00015779,3]
[330702316,1719715892131,-522.36,0.00015779,3]
[330702317,1719715892140,-587.33,0.0001578,3]
[330702318,1719715892150,-730.63,0.0001578,3]
[330702319,1719715892159,-937.17,0.0001578,3]
[330702320,1719715892169,-2172.53,0.0001578,3]
[330702321,1719715892178,-8098.74,0.0001578,3]
[330702322,1719715892188,-1705.68,0.0001578,3]
[330702323,1719715892197,-621.2,0.0001578,3]
[330702324,1719715892206,-786.94,0.0001578,3]
[330702325,1719715892216,-575.12,0.0001578,3]
[330702326,1719715892225,-633.74,0.0001578,3]
[330702327,1719715892235,-500.0,0.0001578,3]
[330702328,1719715892244,-500.0,0.0001578,3]
[330702329,1719715892254,-1034.52,0.0001578,3]
[330702330,1719715892264,-768.2,0.0001578,3]
[330702331,1719715892273,-614.71,0.0001578,3]
[330702332,1719715892282,-731.6,0.0001578,3]
[330702333,1719715892292,-500.0,0.0001578,3]
[330702334,1719715892301,-560.3,0.0001578,3]
[330702335,1719715892310,-500.0,0.0001578,3]
[330702336,1719715892320,-670.04,0.0001578,3]
[330702337,1719715892329,-604.8634176,0.0001578,3]
[330702338,1719715892338,-500.0,0.0001578,3]
[330702339,1719715892349,-670.53,0.0001578,3]
[330702340,1719715892358,-1084.67,0.0001578,3]
[330702341,1719715892367,-688.83,0.0001578,3]
[330702342,1719715892376,-1047.34,0.0001578,3]
[330702343,1719715892386,-874.39,0.0001578,3]
[330702344,1719715892396,-500.0,0.0001578,3]
[330702345,1719715892406,-500.0,0.0001578,3]
[330702346,1719715892416,-989.37,0.0001578,3]
[330702347,1719715892425,-639.49,0.0001578,3]
[330702348,1719715892434,-749.55,0.0001578,3]
[330702349,1719715892444,-1660.26,0.0001578,3]
[330702350,1719715892453,-313.70212756,0.0001578,3]
[330702351,1719715892462,-500.0,0.0001578,3]
[330702352,1719715892472,-609.86,0.0001578,3]
[330702353,1719715892482,-575.37,0.0001578,3]
[330702354,1719715892491,-525.93,0.0001578,3]
[330702355,1719715892500,-1032.93,0.0001578,3]
[330702356,1719715892510,-503.73,0.0001578,3]
[330702357,1719715892519,-907.61,0.0001578,3]
[330702358,1719715892529,-527.41781359,0.0001578,3]
[330702359,1719715892538,-919.71,0.0001578,3]
[330702360,1719715892547,-609.42,0.0001578,3]
[330702361,1719715892558,-561.12,0.0001578,3]
[330702362,1719715892567,-155.73,0.0001578,3]
[330702363,1719715892576,-524.56,0.0001578,3]
[330702364,1719715892585,-648.03,0.0001578,3]
[330702365,1719715892596,-665.61,0.0001578,3]
[330702366,1719715892607,-500.0,0.0001578,3]
[330702367,1719715892616,-595.24,0.0001578,3]
[330702368,1719715892625,-496.7255246,0.0001578,3]
[330702369,1719715892636,-500.0,0.0001578,3]
[330702370,1719715892646,-535.24,0.0001578,3]
[330702371,1719715892655,-1707.57,0.0001578,3]
[330702372,1719715892664,-500.0,0.0001578,3]
[330702373,1719715892674,-1194.29,0.0001578,3]
[330702374,1719715892683,-862.38,0.0001578,3]
[330702375,1719715892693,-775.65,0.0001578,3]
[330702376,1719715892702,-500.0,0.0001578,3]
[330702377,1719715892711,-500.0,0.0001578,3]
[330702378,1719715892720,-2017.06,0.0001578,3]
[330702379,1719715892729,-1155.28,0.0001578,3]
[330702380,1719715892738,-3847.3,0.0001578,3]
[330702381,1719715892748,-501.09,0.0001578,3]
[330702382,1719715892757,-670.12,0.0001578,3]
[330702383,1719715892768,-1981.14,0.0001578,3]
[330702384,1719715892778,-561.32,0.0001578,3]
[330702385,1719715892787,-1322.8,0.0001578,3]
[330702386,1719715892798,-500.0,0.0001578,3]
[330702387,1719715892807,-757.5,0.0001578,3]
[330702388,1719715892816,-500.0,0.0001578,3]
[330702389,1719715892826,-579.95,0.0001578,3]
[330702390,1719715892836,-1006.07,0.0001578,3]
[330702391,1719715892848,-500.0,0.0001578,3]
[330702392,1719715892858,-500.0,0.0001578,3]
[330702393,1719715892868,-1341.8,0.0001578,3]
[330702394,1719715892878,-500.0,0.0001578,3]
[330702395,1719715892887,-500.0,0.0001578,3]
[330702396,1719715892897,-633.84,0.0001578,3]
[330702397,1719715892906,-500.0,0.0001578,3]
[330702398,1719715892915,-1187.56,0.0001578,3]
[330702399,1719715892925,-500.0,0.0001578,3]
[330702400,1719715892934,-579.77,0.0001578,3]
[330702401,1719715892945,-603.84,0.0001578,3]
[330702402,1719715892955,-552.84,0.0001578,3]
[330702403,1719715892964,-552.90313849,0.0001578,3]
[330702404,1719715892974,-550.65617718,0.0001578,3]
[330702405,1719715892983,-965.88,0.0001578,3]
[330702406,1719715892993,-642.26,0.0001578,3]
[330702407,1719715893003,-698.45,0.0001578,3]
[330702408,1719715893012,-516.27,0.0001578,3]
[330702409,1719715893022,-500.0,0.0001578,3]
[330702410,1719715893031,-675.86,0.0001578,3]
[330702411,1719715893040,-763.84,0.0001578,3]
[330702412,1719715893052,-892.41,0.0001578,3]
[330702413,1719715893065,-708.05,0.0001578,3]
[330702414,1719715893075,-713.73,0.0001578,3]
[330702415,1719715893084,-523.74,0.0001578,3]
[330702416,1719715893094,-500.0,0.0001578,3]
[330702417,1719715893105,-624.5,0.0001578,3]
[330702418,1719715893115,-500.0,0.0001578,3]
[330702419,1719715893125,-3175.52,0.0001578,3]
[330702420,1719715893137,-500.0,0.0001578,3]
[330702421,1719715893147,-987.08,0.0001578,3]
[330702422,1719715893157,-1368.96,0.0001578,3]
[330702423,1719715893167,-500.0,0.0001578,3]
[330702424,1719715893177,-1311.38,0.0001578,3]
[330702425,1719715893187,-907.53,0.0001578,3]
[330702426,1719715893197,-507.05,0.0001578,3]
[330702427,1719715893207,-1080.55,0.0001578,3]
[330702428,1719715893217,-1968.8,0.0001578,3]
[330702429,1719715893227,-1471.1,0.0001578,3]
[330702430,1719715893238,-1161.94,0.0001578,3]